bitfinex/quotes_SOLUSD_20250918
["timestamp","ask_amount","ask_price","bid_price","bid_amount"]
[1758189601372,35.54628955,247.14,247.13,0.68]
[1758189601796,35.54628955,247.14,247.1,0.14216157]
[1758189601983,4.14628955,247.14,247.13,0.68]
[1758189602290,35.54628955,247.14,247.13,0.68]
[1758189602982,31.5,247.14,247.13,0.68]
[1758189603578,35.54628955,247.14,247.13,0.68]
[1758189603901,4.14628955,247.14,247.13,0.68]
[1758189604301,35.52628955,247.14,247.13,0.68]
[1758189605087,4.14628955,247.14,247.13,0.68]
[1758189605276,48.60740589,247.14,247.09,0.03]
[1758189605597,2.27539246,247.12,247.09,0.03]
[1758189605895,14.95201343,247.14,247.09,0.74]
[1758189605896,32.15,247.13,247.09,0.74]
[1758189606097,31.46,247.12,247.1,0.71]
[1758189606272,31.46,247.12,247.11,0.71]
[1758189608186,31.44,247.12,247.11,0.71]
[1758189608590,1.55560131,247.14,247.12,0.28432314]
[1758189608591,0.1,247.14,247.12,0.28432314]
[1758189608784,0.1,247.14,247.13,0.71]
[1758189609005,31.56,247.14,247.13,0.71]
[1758189609776,37.06189086,247.14,247.13,0.71]
[1758189610077,37.06189086,247.14,247.12,0.28432314]
[1758189610282,37.06189086,247.14,247.13,0.71]
[1758189610686,33.01560131,247.14,247.13,0.71]
[1758189611101,37.06189086,247.14,247.13,0.71]
[1758189612082,35.60628955,247.14,247.13,0.71]
[1758189612287,35.56628955,247.14,247.13,0.71]
[1758189612891,37.02189086,247.14,247.13,0.71]
[1758189613414,32.97560131,247.14,247.13,0.71]
[1758189613589,31.52,247.14,247.13,0.71]
[1758189613789,35.56628955,247.14,247.13,0.71]
[1758189613989,37.02189086,247.14,247.11,0.42648471]
[1758189614191,37.02189086,247.14,247.11,0.85216157]
[1758189614608,37.02189086,247.14,247.12,0.03]
[1758189614980,37.02189086,247.14,247.12,0.74]
[1758189616289,35.56628955,247.14,247.12,0.03]
[1758189616516,35.56628955,247.14,247.13,0.71]
[1758189616725,31.52,247.14,247.13,0.71]
[1758189617215,0.1,247.14,247.13,0.71]
[1758189617393,31.5,247.14,247.13,0.71]
[1758189617793,35.54628955,247.14,247.12,0.17216157]
[1758189618099,31.4,247.13,247.12,0.88216157]
[1758189619415,35.44645328,247.13,247.12,0.88216157]
[1758189619595,35.44645328,247.13,247.12,0.17216157]
[1758189619996,35.44645328,247.13,247.12,0.88216157]
[1758189620197,31.4,247.13,247.12,0.88216157]
[1758189621628,4.14634842,247.14,247.12,0.88216157]
[1758189621922,31.36,247.13,247.12,0.88216157]
[1758189622840,4.14634842,247.14,247.12,0.88216157]
[1758189623124,33.50560131,247.13,247.12,0.03]
[1758189623430,37.55205459,247.13,247.12,0.03]
[1758189626118,6.19205459,247.13,247.12,0.03]
[1758189626324,37.55205459,247.13,247.12,0.03]
[1758189627732,6.19205459,247.13,247.12,0.03]
[1758189627910,37.53205459,247.13,247.12,0.03]
[1758189628407,6.19205459,247.13,247.12,0.03]
[1758189628607,37.53205459,247.13,247.12,0.03]
[1758189635937,37.49205459,247.13,247.12,0.03]
[1758189639439,6.19205459,247.13,247.12,0.03]
[1758189639643,37.49205459,247.13,247.12,0.03]
[1758189641823,6.19205459,247.13,247.12,0.03]
[1758189642024,37.47205459,247.13,247.12,0.03]
[1758189642226,6.19205459,247.13,247.12,0.03]
[1758189642547,37.47205459,247.13,247.12,0.03]
[1758189642856,6.19205459,247.13,247.12,0.03]
[1758189643035,37.47205459,247.13,247.12,0.03]
[1758189643848,30.04645328,247.13,247.12,0.71]
[1758189644050,4.04645328,247.13,247.12,0.71]
[1758189644249,36.76205459,247.13,247.12,0.71]
[1758189644624,36.78205459,247.13,247.12,0.71]
[1758189645850,36.76205459,247.13,247.12,0.71]
[1758189646222,5.50205459,247.13,247.12,0.71]
[1758189646424,36.76205459,247.13,247.12,0.71]
[1758189647241,5.50205459,247.13,247.12,0.71]
[1758189647438,36.76205459,247.13,247.12,0.71]
[1758189647639,36.76205459,247.13,247.12,0.03]
[1758189647948,36.76205459,247.13,247.12,0.71]
[1758189648437,36.76205459,247.13,247.12,0.03]
[1758189648749,36.00645328,247.13,247.12,0.03]
[1758189648963,37.46205459,247.13,247.12,0.03]
[1758189650757,61.30645328,247.13,247.12,0.71]
[1758189651060,62.76205459,247.13,247.12,0.71]
[1758189651529,31.50205459,247.13,247.12,0.71]
[1758189651733,62.82205459,247.13,247.12,0.71]
[1758189653268,36.80205459,247.13,247.12,0.71]
[1758189653833,36.80205459,247.13,247.12,0.03]
[1758189654763,37.50205459,247.13,247.12,0.03]
[1758189656963,36.80205459,247.13,247.12,0.03]
[1758189657465,37.46205459,247.13,247.12,0.03]
[1758189659947,36.80205459,247.13,247.12,0.03]
[1758189660465,36.78205459,247.13,247.12,0.03]
[1758189662443,37.45205459,247.13,247.12,0.03]
[1758189662766,30.77645328,247.13,247.12,0.03]
[1758189662954,63.45205459,247.13,247.12,0.03]
[1758189666982,66.85318752,247.13,247.12,0.03]
[1758189667147,63.45205459,247.13,247.12,0.03]
[1758189667748,64.27190538,247.13,247.12,0.03]
[1758189669175,63.60190538,247.13,247.12,0.03]
[1758189669967,32.38190538,247.13,247.12,0.03]
[1758189670178,63.56190538,247.13,247.12,0.71]
[1758189671554,32.38190538,247.13,247.12,0.71]
[1758189671869,63.56190538,247.13,247.12,0.71]
[1758189673761,4.10645328,247.13,247.12,0.71]
[1758189673964,37.54190538,247.13,247.12,0.71]
[1758189674664,37.56190538,247.13,247.12,0.71]
[1758189676071,6.38190538,247.13,247.12,0.71]
[1758189676278,37.54190538,247.13,247.12,0.71]
[1758189676476,35.26645328,247.13,247.12,0.71]
[1758189676781,37.54190538,247.13,247.12,0.71]
[1758189678582,6.38190538,247.13,247.12,0.71]
[1758189678880,37.54190538,247.13,247.12,0.71]
[1758189679262,37.54190538,247.13,247.12,0.03]
[1758189680065,38.21190538,247.13,247.12,0.03]
[1758189682588,37.54190538,247.13,247.12,0.03]
[1758189683468,38.21190538,247.13,247.12,0.03]
[1758189687685,26.0,247.1,247.09,1e-08]
[1758189687893,59.4154521,247.1,247.09,1e-08]
[1758189688570,26.0,247.1,247.09,1e-08]
[1758189688772,59.4154521,247.1,247.09,1e-08]
[1758189689683,63.46239665,247.1,247.09,1e-08]
[1758189692277,64.12239665,247.1,247.09,1e-08]
[1758189692591,32.98239665,247.1,247.09,1e-08]
[1758189692794,64.12239665,247.1,247.09,1e-08]
[1758189695301,63.46239665,247.1,247.09,1e-08]
[1758189696191,30.04694455,247.1,247.09,1e-08]
[1758189696392,63.46239665,247.1,247.09,1e-08]
[1758189697379,32.32239665,247.1,247.09,1e-08]
[1758189697578,63.46239665,247.1,247.09,1e-08]
[1758189699572,63.46239665,247.1,247.09,0.69000001]
[1758189700179,63.46239665,247.1,247.09,1e-08]
[1758189701470,61.18694455,247.1,247.09,1e-08]
[1758189701692,63.46239665,247.1,247.09,0.69000001]
[1758189701899,63.46239665,247.1,247.09,1e-08]
[1758189702586,63.52239665,247.1,247.09,1e-08]
[1758189710989,63.52239665,247.1,247.09,0.69000001]
[1758189712102,32.38239665,247.1,247.09,0.69000001]
[1758189712280,63.50239665,247.1,247.09,1e-08]
[1758189713894,61.22694455,247.1,247.09,1e-08]
[1758189714198,63.50239665,247.1,247.09,1e-08]
[1758189718716,64.17239665,247.1,247.09,1e-08]
[1758189720113,69.84898168,247.1,247.09,1e-08]
[1758189720988,35.78352958,247.1,247.09,1e-08]
[1758189721312,63.50239665,247.1,247.09,1e-08]
[1758189723492,32.38239665,247.1,247.09,1e-08]
[1758189723708,63.50239665,247.1,247.09,1e-08]
[1758189724198,66.90352958,247.1,247.09,1e-08]
[1758189727038,67.61352958,247.1,247.09,1e-08]
[1758189728223,66.90352958,247.1,247.09,1e-08]
[1758189728436,67.61352958,247.1,247.09,1e-08]
[1758189729404,80.00634307,247.1,247.06,1e-08]
[1758189729601,33.95203713,247.07,247.06,1e-08]
[1758189729909,26.0,247.05,247.04,0.03]
[1758189730104,64.40629085,247.05,247.04,0.03]
[1758189730336,29.41144564,247.05,247.04,0.72]
[1758189730548,67.81773649,247.05,247.04,0.72]
[1758189730724,60.53144564,247.05,247.04,0.72]
[1758189731035,67.81773649,247.05,247.04,0.03]
[1758189731336,64.40629085,247.05,247.04,0.03]
[1758189731544,68.45405446,247.05,247.04,0.03]
[1758189732312,49.5217909,247.05,247.04,0.03]
[1758189732513,80.6417909,247.05,247.04,0.03]
[1758189732958,80.6417909,247.05,247.02,0.69]
[1758189732959,90.76119992,247.05,247.02,0.69]
[1758189733108,1.45725817,247.03,247.02,0.69]
[1758189733309,32.57725817,247.03,247.0,0.69]
[1758189733511,1.45725817,247.01,247.0,0.69]
[1758189733720,32.57725817,247.01,246.98,0.69]
[1758189733923,1.45725817,246.99,246.93,0.42648471]
[1758189734148,1.45725817,246.95,246.91,13.69559401]
[1758189734348,1.45725817,246.93,246.91,0.1]
[1758189734645,1.45725817,246.93,246.92,0.83216157]
[1758189734823,35.16973069,246.93,246.92,0.83216157]
[1758189735023,35.16973069,246.93,246.92,0.69]
[1758189735224,35.16973069,246.93,246.92,0.83216157]
[1758189735944,35.16973069,246.93,246.92,0.69]
[1758189738132,31.12,246.93,246.92,0.69]
[1758189739141,4.04907478,246.97,246.92,0.69]
[1758189739331,4.04858299,247.0,246.94,0.28432314]
[1758189739660,31.12,246.99,246.95,0.69]
[1758189739837,4.04858299,247.0,246.95,0.69]
[1758189740159,31.12,246.99,246.95,0.69]
[1758189740360,4.04858299,247.0,246.95,0.69]
[1758189740553,31.12,246.99,246.95,0.69]
[1758189740751,31.12,246.98,246.95,0.69]
[1758189740953,4.04858299,247.0,246.95,0.69]
[1758189741142,31.12,246.99,246.95,0.69]
[1758189741657,31.12,246.99,246.93,0.69]
[1758189741658,31.12,246.98,246.93,0.69]
[1758189741849,32.57725817,246.98,246.93,0.69]
[1758189742044,33.28725817,246.98,246.94,0.69]
[1758189742245,4.04907478,246.97,246.94,0.69]
[1758189742444,31.12,246.96,246.94,0.69]
[1758189742857,31.12,246.96,246.91,0.55648471]
[1758189743046,31.12,246.96,246.95,0.69]
[1758189743367,31.12,246.96,246.92,0.69]
[1758189743528,31.83,246.96,246.92,0.69]
[1758189743965,33.28725817,246.96,246.92,0.69]
[1758189744270,5.38198393,246.92,246.91,0.13]
[1758189744568,36.50198393,246.92,246.91,0.13]
[1758189745563,31.12,246.92,246.91,0.13]
[1758189746542,31.12,246.92,246.91,0.82]
[1758189747252,6.05982267,246.95,246.91,0.96216157]
[1758189747458,31.12,246.94,246.92,0.42648471]
[1758189747763,31.12,246.94,246.93,0.69]
[1758189748469,6.87132536,246.93,246.92,0.42648471]
[1758189749473,6.87132536,246.93,246.91,0.41432314]
[1758189749675,31.12,246.92,246.91,0.41432314]
[1758189750274,37.62332536,246.92,246.91,0.41432314]
[1758189751486,6.50332536,246.92,246.91,14.15207872]
[1758189751685,6.50332536,246.92,246.91,18.34213744]
[1758189751976,33.52332536,246.92,246.91,18.34213744]
[1758189752148,6.36332536,246.92,246.91,28.46262026]
[1758189752479,0.06,247.1,247.01,13.59559401]
[1758189752778,0.06,247.1,247.06,0.42648471]
[1758189752779,31.12,247.09,247.06,0.42648471]
[1758189752948,0.06,247.1,247.08,0.42648471]
[1758189753152,31.12,247.09,247.08,0.42648471]
[1758189753549,0.06,247.1,247.08,0.42648471]
[1758189753777,31.12,247.09,247.08,14.02207872]
[1758189753959,31.18,247.09,247.08,14.02207872]
[1758189754164,31.85,247.09,247.08,0.42648471]
[1758189754761,35.89710834,247.09,247.03,25.7430643]
[1758189754956,0.67,247.08,247.04,0.42648471]
[1758189755168,31.79,247.07,247.04,0.42648471]
[1758189755476,31.12,247.06,247.04,0.42648471]
[1758189755677,31.79,247.06,247.04,0.42648471]
[1758189755876,0.67,247.05,247.04,0.42648471]
[1758189756463,31.12,247.06,247.04,0.42648471]
[1758189757163,31.79,247.06,247.04,0.42648471]
[1758189757363,0.67,247.05,247.04,0.42648471]
[1758189757875,0.67,247.05,246.99,14.02207872]
[1758189758071,0.67,247.04,246.99,13.59559401]
[1758189758376,31.79,247.03,246.99,0.14216157]
[1758189758578,35.16812608,247.03,246.99,0.14216157]
[1758189758767,31.79,247.03,246.99,0.14216157]
[1758189758966,0.67,247.02,246.99,0.14216157]
[1758189759357,0.67,247.01,246.99,0.14216157]
[1758189759569,31.12,247.0,246.99,0.14216157]
[1758189760565,31.12,247.0,246.98,0.42648471]
[1758189760760,31.12,247.0,246.98,4.47538808]
[1758189762956,0.67,247.03,246.98,4.47538808]
[1758189763155,31.79,247.02,246.98,4.47538808]
[1758189764082,31.12,247.02,246.98,4.47538808]
[1758189764382,31.79,247.01,246.98,4.47538808]
[1758189764574,31.79,247.01,246.98,0.42648471]
[1758189764770,0.67,247.0,246.98,0.42648471]
[1758189765080,0.67,246.99,246.98,0.42648471]
[1758189766574,31.12,247.01,246.98,0.42648471]
[1758189766782,31.79,247.01,246.98,4.47529735]
[1758189767275,0.67,247.05,247.01,13.59559401]
[1758189767489,31.12,247.04,247.03,14.02207872]
[1758189767674,0.67,247.07,247.04,0.42648471]
[1758189767874,31.12,247.06,247.04,0.42648471]
[1758189768580,0.06,247.09,247.06,0.42648471]
[1758189768760,0.73,247.09,247.06,0.42648471]
[1758189769081,0.06,247.09,247.06,0.42648471]
[1758189769285,31.18,247.09,247.06,0.42648471]
[1758189769663,31.85,247.09,247.06,0.42648471]
[1758189769979,31.18,247.09,247.06,0.42648471]
[1758189770183,31.18,247.09,247.06,4.47394189]
[1758189774063,0.06,247.09,247.06,4.47394189]
[1758189777169,0.06,247.09,247.06,0.42648471]
[1758189777478,0.72,247.08,247.06,0.42648471]
[1758189777675,0.72,247.07,247.06,0.42648471]
[1758189778862,0.72,247.07,247.06,14.02207872]
[1758189779312,0.72,247.07,247.03,12.14747029]
[1758189779313,31.18,247.09,247.08,0.42648471]
[1758189779472,35.22712597,247.09,247.08,0.42648471]
[1758189779672,31.18,247.09,247.08,0.42648471]
[1758189779884,31.9,247.09,247.08,0.42648471]
[1758189781704,31.9,247.09,247.08,14.02207872]
[1758189781887,0.06,247.09,247.08,14.02207872]
[1758189782206,31.9,247.09,247.08,14.02207872]
[1758189782699,31.9,247.09,247.08,18.06935085]
[1758189782881,0.06,247.09,247.08,18.06935085]
[1758189786290,0.06,247.09,247.08,14.02207872]
[1758189786686,0.06,247.09,247.08,18.06935085]
[1758189788009,0.75,247.09,247.08,14.02207872]
[1758189788202,0.06,247.09,247.08,18.06935085]
[1758189791994,0.06,247.09,247.08,14.02207872]
[1758189791995,0.75,247.09,247.08,14.02207872]
[1758189793400,0.06,247.09,247.08,18.06935085]
[1758189800309,0.75,247.09,247.08,18.06935085]
[1758189800726,0.06,247.09,247.08,18.06935085]
[1758189802613,0.75,247.09,247.08,18.06935085]
[1758189804915,0.06,247.09,247.08,18.06935085]
[1758189816618,0.76,247.09,247.08,18.06935085]
[1758189817029,0.76,247.09,247.08,17.92718928]
[1758189817332,0.76,247.09,247.08,17.78502771]
[1758189817715,0.76,247.09,247.08,17.92718928]
[1758189818022,0.76,247.09,247.08,18.06935085]
[1758189822342,0.76,247.09,247.08,14.02207872]
[1758189823223,0.06,247.09,247.08,18.06935085]
[1758189823420,0.06,247.09,247.08,14.02207872]
[1758189823717,0.06,247.09,247.08,18.06935085]
[1758189823718,0.76,247.09,247.08,18.06935085]
[1758189825146,4.80710834,247.09,247.03,13.59559401]
[1758189825316,0.7,247.08,247.03,13.59559401]
[1758189825648,0.7,247.07,247.03,13.59559401]
[1758189825932,0.7,247.06,247.03,13.59559401]
[1758189826139,0.7,247.05,247.01,13.59559401]
[1758189826325,0.7,247.04,247.01,13.59559401]
[1758189826519,2.27338554,247.08,247.01,13.59559401]
[1758189826719,0.7,247.03,247.01,13.59559401]
[1758189826921,0.7,247.02,247.01,13.59559401]
[1758189827113,0.7,247.02,247.01,14.02207872]
[1758189827818,0.7,247.04,247.02,0.14216157]
[1758189828341,0.7,247.03,247.02,0.14216157]
[1758189829231,0.7,247.03,247.02,17.78601078]
[1758189831047,0.7,247.05,247.02,17.78601078]
[1758189831223,4.04727529,247.08,247.02,17.78601078]
[1758189831524,0.7,247.07,247.02,17.78601078]
[1758189831938,35.20714349,247.09,247.02,17.78601078]
[1758189832133,0.7,247.08,247.02,17.78601078]
[1758189832333,0.7,247.07,247.02,17.78601078]
[1758189832630,0.7,247.06,247.02,17.78601078]
[1758189832830,0.7,247.05,247.02,17.78601078]
[1758189833154,0.7,247.04,247.02,17.78601078]
[1758189835135,0.68,247.03,247.02,13.73775558]
[1758189836432,0.68,247.03,247.02,17.78601078]
[1758189836631,35.20712296,247.09,247.02,17.78601078]
[1758189836945,0.68,247.05,247.02,17.78601078]
[1758189838224,0.68,247.04,246.99,26.0]
[1758189838437,2.95338554,247.03,246.96,4.19140031]
[1758189838718,0.68,247.02,246.99,13.59559401]
[1758189838924,2.27338554,247.03,247.02,0.03]
[1758189839429,2.95338554,247.03,247.02,0.03]
[1758189840350,7.00147686,247.03,247.02,0.03]
[1758189840540,0.68,247.03,247.02,0.03]
[1758189840728,31.78,247.03,247.02,0.03]
[1758189841537,31.78,247.03,246.99,0.03]
[1758189841538,48.22170517,247.03,246.99,0.03]
[1758189841851,2.27338554,247.0,246.92,0.03]
[1758189842044,2.27338554,246.95,246.92,0.03]
[1758189842245,31.1,246.94,246.92,0.03]
[1758189842426,31.1,246.93,246.92,0.03]
[1758189842742,31.81,246.93,246.92,0.03]
[1758189842945,0.71,246.99,246.93,0.14216157]
[1758189843327,31.1,246.98,246.93,0.14216157]
[1758189843529,31.1,246.97,246.93,0.14216157]
[1758189844143,31.1,246.97,246.94,4.04956669]
[1758189844144,0.71,246.97,246.94,4.04956669]
[1758189844344,0.71,246.96,246.93,0.14216157]
[1758189844947,0.71,246.96,246.94,13.59559401]
[1758189845643,0.71,246.95,246.92,13.62559401]
[1758189845830,2.98338554,246.94,246.92,0.17216157]
[1758189846030,2.98338554,246.94,246.92,0.03]
[1758189846031,2.27338554,246.93,246.92,0.03]
[1758189846334,6.32311623,246.93,246.92,0.03]
[1758189846538,6.32311623,246.93,246.91,0.13]
[1758189846539,7.03311623,246.93,246.91,0.13]
[1758189846737,2.27338554,246.92,246.91,0.13]
[1758189847160,2.98338554,246.92,246.91,0.13]
[1758189848152,7.03328024,246.92,246.91,0.13]
[1758189849235,38.13328024,246.92,246.91,0.13]
[1758189850567,40.40666578,246.92,246.91,1e-08]
[1758189851934,38.13328024,246.92,246.91,1e-08]
[1758189852455,33.39338554,246.92,246.91,1e-08]
[1758189853153,35.66677108,246.92,246.91,1e-08]
[1758189853755,38.41461305,246.92,246.91,1e-08]
[1758189853958,7.29461305,246.9,246.89,0.03]
[1758189854451,12.05483581,246.9,246.89,0.03]
[1758189855161,12.05483581,246.9,246.88,0.03]
[1758189855336,7.29461305,246.89,246.88,0.03]
[1758189855964,8.00461305,246.89,246.88,0.03]
[1758189856468,26.0,246.87,246.83,0.03]
[1758189856766,26.0,246.85,246.83,0.03]
[1758189857061,26.0,246.84,246.71,0.1]
[1758189857238,2.91784522,246.82,246.71,13.69559401]
[1758189857439,2.91784522,246.82,246.72,0.71]
[1758189857647,3.62784522,246.82,246.7,13.59559401]
[1758189857841,1.45892261,246.74,246.7,13.59559401]
[1758189858148,31.16,246.73,246.7,17.64906173]
[1758189858349,31.16,246.72,246.7,17.64906173]
[1758189859164,0.71,246.82,246.71,0.42648471]
[1758189859352,31.16,246.81,246.71,0.42648471]
[1758189859554,1.45892261,246.79,246.71,0.42648471]
[1758189859964,1.45892261,246.78,246.71,0.42648471]
[1758189860265,32.61892261,246.77,246.71,0.42648471]
[1758189860460,32.61892261,246.77,246.73,13.59559401]
[1758189860646,1.45892261,246.75,246.73,13.59559401]
[1758189860848,1.45892261,246.76,246.73,13.59559401]
[1758189861455,31.16,246.77,246.73,13.59559401]
[1758189862164,32.61892261,246.77,246.73,13.59559401]
[1758189863243,32.61892261,246.77,246.73,4.05294934]
[1758189864165,32.61892261,246.77,246.71,4.47967939]
[1758189864356,1.45892261,246.76,246.71,4.47967939]
[1758189865470,32.61892261,246.77,246.71,4.47967939]
[1758189865968,32.61892261,246.77,246.72,13.59559401]
[1758189866141,31.16,246.77,246.72,13.59559401]
[1758189866345,1.45892261,246.73,246.71,26.0]
[1758189866743,32.61892261,246.73,246.71,26.0]
[1758189866961,1.45892261,246.72,246.71,26.0]
[1758189867172,1.45892261,246.72,246.68,13.79559401]
[1758189867354,1.45892261,246.71,246.68,13.79559401]
[1758189867871,31.16,246.73,246.68,17.84941906]
[1758189868107,1.45892261,246.72,246.68,17.84941906]
[1758189868250,32.61892261,246.73,246.68,17.84941906]
[1758189869051,31.16,246.73,246.68,17.84941906]
[1758189873109,32.61892261,246.73,246.68,17.84941906]
[1758189874379,1.45892261,246.72,246.68,17.84941906]
[1758189875261,31.16,246.73,246.68,17.84941906]
[1758189876467,31.14,246.76,246.69,14.02207872]
[1758189878585,31.14,246.76,246.7,4.05350628]
[1758189878764,31.14,246.76,246.72,13.59559401]
[1758189879690,31.14,246.76,246.73,4.05301341]
[1758189879991,0.69,246.75,246.72,13.59559401]
[1758189880491,35.19257654,246.76,246.71,26.0]
[1758189880669,1.45892261,246.73,246.7,13.59559401]
[1758189881000,35.19257654,246.76,246.7,13.59559401]
[1758189881001,2.14892261,246.72,246.7,13.59559401]
[1758189881167,2.14892261,246.72,246.69,13.59559401]
[1758189881492,2.14892261,246.71,246.69,13.59559401]
[1758189881686,1.45892261,246.71,246.69,13.59559401]
[1758189882369,1.45892261,246.72,246.69,13.59559401]
[1758189882565,2.14892261,246.72,246.69,13.59559401]
[1758189884292,0.69,246.72,246.69,13.59559401]
[1758189884495,2.14892261,246.72,246.69,13.59559401]
[1758189885493,1.45892261,246.72,246.69,13.59559401]
[1758189886693,2.14892261,246.72,246.69,13.59559401]
[1758189887073,0.69,246.72,246.69,13.59559401]
[1758189887984,0.69,246.72,246.69,17.64924276]
[1758189888172,0.06,246.73,246.7,0.51]
[1758189888787,0.06,246.73,246.69,17.64924276]
[1758189889087,1.33975767,246.73,246.69,17.64924276]
[1758189889487,1.27975767,246.72,246.69,17.64924276]
[1758189894792,0.68,246.71,246.69,17.64924276]
[1758189895181,1.27975767,246.72,246.69,17.64924276]
[1758189895381,1.95975767,246.72,246.69,17.64924276]
[1758189895902,0.68,246.71,246.69,13.59559401]
[1758189896114,1.27975767,246.72,246.69,13.59559401]
[1758189896300,1.27975767,246.71,246.69,13.59559401]
[1758189897301,1.27975767,246.71,246.69,17.6492117]
[1758189897919,1.27975767,246.71,246.69,13.59559401]
[1758189898081,1.95975767,246.71,246.69,13.59559401]
[1758189898281,1.27975767,246.71,246.69,13.59559401]
[1758189898499,1.27975767,246.7,246.69,13.59559401]
[1758189898911,1.27975767,246.7,246.69,17.64925076]
[1758189903095,1.27975767,246.7,246.69,17.67925076]
[1758189903617,1.97975767,246.7,246.69,13.62559401]
[1758189903824,1.27975767,246.7,246.69,17.6792646]
[1758189904908,1.27975767,246.7,246.69,18.61574931]
[1758189907195,0.06,246.73,246.72,40.02207872]
[1758189907395,0.06,246.73,246.72,71.16207872]
[1758189907607,0.06,246.73,246.72,71.67207872]
[1758189908295,0.06,246.73,246.72,75.72525641]
[1758189908717,0.06,246.76,246.75,39.59559401]
[1758189908901,0.06,246.76,246.75,71.16207872]
[1758189909208,0.06,246.76,246.75,71.67207872]
[1758189909600,0.06,246.76,246.75,40.53207872]
[1758189909912,0.06,246.76,246.75,71.16207872]
[1758189910113,0.06,246.76,246.75,40.02207872]
[1758189910320,0.06,246.76,246.75,75.21476362]
[1758189910520,0.76,246.76,246.75,71.16207872]
[1758189910815,0.76,246.76,246.75,40.02207872]
[1758189911191,0.76,246.76,246.71,31.14]
[1758189911394,0.7,246.75,246.73,13.59559401]
[1758189911693,0.06,246.76,246.73,13.59559401]
[1758189911694,0.7,246.74,246.73,14.02207872]
[1758189912516,2.15892261,246.74,246.71,13.59559401]
[1758189912716,0.7,246.73,246.7,13.59559401]
[1758189912922,0.7,246.72,246.7,13.59559401]
[1758189913139,0.7,246.71,246.7,13.59559401]
[1758189913422,0.7,246.71,246.7,14.02207872]
[1758189913592,0.7,246.71,246.7,13.87991715]
[1758189913997,2.341127,246.76,246.7,18.075585]
[1758189914198,0.7,246.74,246.7,18.075585]
[1758189914419,0.7,246.73,246.7,18.075585]
[1758189914742,2.341127,246.76,246.7,18.075585]
[1758189914743,0.06,246.76,246.74,13.59559401]
[1758189915023,0.06,246.76,246.75,0.14216157]
[1758189915399,0.06,246.76,246.75,39.73775558]
[1758189915619,0.06,246.76,246.75,40.02207872]
[1758189916139,0.06,246.76,246.75,44.07476362]
[1758189921947,0.06,246.76,246.75,44.58476362]
[1758189922510,0.06,246.76,246.75,44.07476362]
[1758189925112,0.06,246.76,246.75,75.21476362]
[1758189925661,0.06,246.76,246.75,44.07476362]
[1758189925814,0.06,246.76,246.75,75.21476362]
[1758189927234,0.06,246.76,246.75,44.07476362]
[1758189927437,0.06,246.76,246.75,75.19476362]
[1758189928117,0.06,246.76,246.75,44.07476362]
[1758189928318,0.06,246.76,246.75,75.19476362]
[1758189929041,0.06,246.76,246.75,44.07476362]
[1758189929242,0.06,246.76,246.75,75.19476362]
[1758189930532,0.06,246.76,246.75,44.07476362]
[1758189930738,0.06,246.76,246.75,75.19476362]
[1758189933036,0.06,246.76,246.75,44.07476362]
[1758189933239,0.76,246.76,246.75,43.64827891]
[1758189933454,0.76,246.76,246.75,13.59559401]
[1758189933753,7.09364766,246.76,246.73,0.03]
[1758189933923,0.76,246.76,246.74,26.0]
[1758189934125,0.76,246.76,246.73,0.03]
[1758189934126,2.981127,246.75,246.73,0.03]
[1758189934740,2.281127,246.74,246.73,0.03]
[1758189935254,2.981127,246.74,246.73,0.03]
[1758189935457,7.03397615,246.74,246.73,0.03]
[1758189939131,2.981127,246.74,246.73,0.03]
[1758189941162,0.76,246.76,246.73,0.03]
[1758189941371,0.7,246.75,246.73,0.03]